Cogmind - Beta 13 @@@ ROGUE MODE // 2024.04.19 @ 18:53:25 Player: Elliott Result: Destroyed by Y-45 Defender with Beam Rifle Performance ------------- Evolutions (1) 500 Regions Visited (2) 400 Robots Destroyed (21) 105 Value Destroyed (624) 624 Prototype IDs (0) 0 Alien Tech Used (0) 0 Bonus (0) 0 TOTAL SCORE: 1629 Bonus ------- None Cogmind --------- Core Integrity 0/400 Matter 290/300 Energy 10/100 System Corruption 0% Temperature Cool (9) Movement Core (100) Ox1 Location -9/Materials Parts ------- > --- POWER (2) -------- (None) > --- PROPULSION (3) --- (None) > --- UTILITY (2) ------ Targeting Computer ECM Suite > --- WEAPON (2) ------- Heavy EM Pulse Gun > --- INVENTORY (5) ---- Heavy EM Pulse Gun Peak State ------------ > --- POWER ------------ Light Ion Engine Light Nuclear Core > --- PROPULSION ------- Flight Unit Flight Unit Flight Unit > --- UTILITY ---------- Improved Heat Sink Targeting Computer > --- WEAPON ----------- Small Laser Light Cannon > --- INVENTORY -------- Flight Unit Light Assault Rifle [Rating: 13] Favorites ----------- Power Light Ion Engine Engine Light Ion Engine Power Core Light Nuclear Core Propulsion Flight Unit Leg Aluminum Leg Wheel Wheel Flight Unit Flight Unit Utility Targeting Computer Device Improved Heat Sink Processor Targeting Computer Weapon Light Assault Rifle Energy Gun Small Laser Ballistic Gun Light Assault Rifle Ballistic Cannon Light Cannon Build | -11 -10 -9 ------- Run | Yrd Mat Mat Slots Evolved 2 | . . 2 Power 1 | . . 1 Propulsion 1 | . . 1 Utility . | . . . Weapon . | . . . Parts Attached 31 | 5 8 18 Power 8 | 1 2 5 Engine 7 | 1 1 5 Core 1 | . 1 . Reactor . | . . . Propulsion 11 | 2 2 7 Treads . | . . . Leg 2 | . . 2 Wheel 2 | 2 . . Hover . | . . . Flight 7 | . 2 5 Utility 4 | . 3 1 Device 3 | . 2 1 Storage . | . . . Processor 1 | . 1 . Hackware . | . . . Protection . | . . . Artifact . | . . . Weapon 8 | 2 1 5 Energy Gun 3 | 2 . 1 Energy Cannon . | . . . Ballistic Gun 4 | . . 4 Ballistic Cannon 1 | . 1 . Launcher . | . . . Special Weapon . | . . . Impact Weapon . | . . . Slashing Weapon . | . . . Piercing Weapon . | . . . Special Melee Weapon . | . . . Unidentified Prototypes . | . . . Parts Lost 18 | . 1 17 Power 4 | . . 4 Propulsion 9 | . . 9 Utility 1 | . . 1 Weapon 4 | . 1 3 Highest Loss Streak 8 | . 1 8 To Critical Strikes . | . . . Average Slot Usage (%) 70 | . 79 62 Engine 10 | . 11 8 Core 2 | . 2 1 Leg 3 | . . 5 Wheel 7 | . 18 . Flight 9 | . 9 9 Device 8 | . 6 10 Processor 8 | . 5 11 Energy Gun 9 | . 20 1 Ballistic Gun 8 | . . 13 Ballistic Cannon 2 | . 4 . Naked Turns . | . . . Heaviest Build 13 | 6 10 13 Greatest Support 20 | 20 20 20 Greatest Overweight (x) 2 | . 1 2 Average Overweight (x) . | . . . Largest Inventory Capacity 5 | 5 5 5 Average Capacity 5 | 5 5 5 Most Carried 5 | 2 5 5 Average Carried 1 | . 2 1 Final Capacity 5 | 5 5 5 Final Carried 4 | . 4 1 Class Distribution -------------------- 50% | Mutant 49% | Scavenger-Mutant Dominant Class ---------------- Mutant | -10/Materials Scavenger-Mutant | -9/Materials Resources | -11 -10 -9 ----------- Run | Yrd Mat Mat Matter Collected 545 | 250 80 215 Remotely . | . . . Salvage Created 727 | 33 176 518 Parts 40 | 1 9 30 Haulers Intercepted . | . . . Recyclers Shooed . | . . . Parts Field Recycled . | . . . Retrieved Matter . | . . . Parts Self-Destructed . | . . . Prevented . | . . . Kills | -11 -10 -9 ------- Run | Yrd Mat Mat Combat Hostiles Destroyed 20 | 1 5 14 Guns 20 | 1 5 14 Classes Destroyed 4 | 1 1 2 Watcher 1 | . . 1 Swarmer 4 | . 1 3 Grunt 15 | 1 4 10 Sentry 1 | . . 1 Best Kill Streak 9 | 1 4 9 Combat Bots Only 9 | 1 4 9 Max Kills in Single Turn 2 | 1 1 2 Gunslinging . | . . . Exploded . | . . . Melee . | . . . Uniques/NPCs Destroyed . | . . . Combat | -11 -10 -9 -------- Run | Yrd Mat Mat Hostile Shots Fired 194 | 4 33 157 Missed 61 | . 12 49 Damage Taken 1583 | 43 218 1322 Core 498 | 11 75 412 Absorbed by Shields . | . . . Core Remaining (%) 80 | 95 65 . Volleys Fired 97 | 3 20 74 Largest 2 | 2 2 2 Hottest 90 | 90 90 60 Shots Fired 156 | 6 29 121 Gun 156 | 6 29 121 Cannon . | . . . Launcher . | . . . Special . | . . . Kinetic 115 | . . 115 Thermal 38 | 6 29 3 Explosive . | . . . Electromagnetic 3 | . . 3 Robot Hit Streak 10 | 5 9 10 Robot Miss Streak 4 | 1 2 4 Penetration Max . | . . . Secondary Targets 3 | . . 3 Max Gunslinging Chain 1 | . . 1 Shots Hit Robots 108 | 5 22 81 Core Hits 46 | 2 10 34 Critical Kills . | . . . Critical Parts Destroyed . | . . . Critical Strikes 1 | . 1 . Burn 1 | . 1 . Melee Attacks . | . . . Impact . | . . . Slashing . | . . . Piercing . | . . . Sneak Attacks . | . . . Combat Hostiles . | . . . Follow-up Attacks . | . . . Damage Inflicted 1033 | 56 267 710 Guns 1033 | 56 267 710 Cannons . | . . . Explosions . | . . . Melee . | . . . Ramming . | . . . Kinetic 659 | . . 659 Thermal 334 | 56 267 11 Explosive . | . . . Electromagnetic 40 | . . 40 Impact . | . . . Slashing . | . . . Piercing . | . . . Highest Corruption . | . . . Average Corruption . | . . . Corruption Purged . | . . . Corruption Blocked . | . . . Overload Shots . | . . . Overflow Damage . | . . . Projectiles . | . . . Explosions . | . . . Melee . | . . . Knockbacks . | . . . Impact . | . . . Kinetic . | . . . Secondary . | . . . Self-Inflicted Damage . | . . . Shots . | . . . Rammed . | . . . Targets Rammed . | . . . Kicked . | . . . Crushed . | . . . Highest Temperature 254 | 108 254 37 Average Temperature 97 | 57 136 11 Received Heat Transfer 762 | 24 78 660 Effects 1 | . 1 . Energy Bleed 1 | . 1 . Siege Activations . | . . . Robots Corrupted . | . . . Combat Hostiles . | . . . Parts Fried . | . . . Impact Corruptions . | . . . Robots Melted . | . . . Combat Hostiles . | . . . Parts Melted 1 | 1 . . Heat Transferred 919 | 149 745 25 Parts Sabotaged . | . . . Parts Stolen . | . . . Parts Stripped . | . . . Power Chain Reactions . | . . . Alert | -11 -10 -9 ------- Run | Yrd Mat Mat Peak Influence 352 | 20 133 352 Initial 55 | . 13 55 Average 164 | 2 82 255 Maximum Alert Level 1 | . . 1 Low Security (%) 60 | 100 100 23 Level 1 39 | . . 76 Level 2 . | . . . Level 3 . | . . . Level 4 . | . . . Level 5 . | . . . High Security . | . . . Max Security . | . . . Squads Dispatched 4 | . 3 1 Investigation 2 | . 1 1 Extermination . | . . . Reinforcement 2 | . 2 . Assault . | . . . Garrison . | . . . Intercept . | . . . Searches Triggered . | . . . Construction Impeded . | . . . Haulers Reinforced . | . . . Active Scanning Responses . | . . . Cargo Convoy Interrupts . | . . . Stealth | -11 -10 -9 --------- Run | Yrd Mat Mat Distress Signals 4 | . 2 2 Communications Jammed . | . . . Distress Signals . | . . . Times Spotted 35 | 1 7 27 Peak Tracking Total 9 | 1 8 9 Tactical Retreats 3 | . . 3 Traps | -11 -10 -9 ------- Run | Yrd Mat Mat Traps Triggered . | . . . Indirectly . | . . . Trap Hack Attempts . | . . . Triggered . | . . . Disarmed . | . . . Reprogrammed . | . . . Reused . | . . . Traps Extracted . | . . . Installed . | . . . Triggered . | . . . Machines | -11 -10 -9 ---------- Run | Yrd Mat Mat Machines Disabled . | . . . Max in Single Turn . | . . . Machines Repaired . | . . . Machines Dismantled . | . . . Machines Sabotaged . | . . . Overloaded Fab Kills . | . . . Hacking | -11 -10 -9 --------- Run | Yrd Mat Mat Machines Accessed 2 | . 1 1 Terminals 1 | . 1 . Fabricators . | . . . Repair Stations . | . . . Recycling Units . | . . . Scanalyzers 1 | . . 1 Garrison Access . | . . . Total Hacks 7 | . 4 3 Successful 6 | . 3 3 Failed 1 | . 1 . Catastrophic . | . . . Database Lockouts . | . . . Manual . | . . . Terminals 4 | . 4 . Fabricators . | . . . Repair Stations . | . . . Recycling Units . | . . . Scanalyzers 3 | . . 3 Garrison Access . | . . . Terminal Hacks 3 | . 3 . Record 2 | . 2 . Zone Layout 1 | . 1 . Fabricator Hacks . | . . . Repair Station Hacks . | . . . Recycling Unit Hacks . | . . . Scanalyzer 3 | . . 3 Insert Component 2 | . . 2 Analyze 1 | . . 1 Garrison Access Hacks . | . . . Unauthorized Hacks . | . . . Terminals . | . . . Fabricators . | . . . Repair Stations . | . . . Recycling Units . | . . . Scanalyzers . | . . . Garrison Access . | . . . Data Cores Recovered . | . . . Used . | . . . Hacking Detections 1 | . . 1 Full Trace Events 1 | . . 1 Feedback Events . | . . . Feedback Blocked . | . . . Robot Schematics Acquired . | . . . Robots Built . | . . . Authchips . | . . . Time . | . . . Total Robot Build Rating . | . . . Part Schematics Acquired 1 | . . 1 Parts Built . | . . . Authchips . | . . . Time . | . . . Total Part Build Rating . | . . . Parts Repaired . | . . . Time . | . . . Parts Recycled . | . . . Recycled Matter . | . . . Retrieved Matter . | . . . Retrieved Components . | . . . Parts Scanalyzed 1 | . . 1 Part Schematics Acquired 1 | . . 1 Parts Damaged . | . . . Bothacking | -11 -10 -9 ------------ Run | Yrd Mat Mat Used RIF Installer . | . . . Robots Hacked . | . . . Non-combat . | . . . Combat . | . . . Robot Hacks Applied . | . . . Relay Couplers Released . | . . . Fabnet Peak Effective % . | . . . Robots Rewired . | . . . Allies Hacked . | . . . Hacks Repelled . | . . . Allies | -11 -10 -9 -------- Run | Yrd Mat Mat Total Allies . | . . . Largest Group . | . . . Highest-Rated Group . | . . . Highest-Rated Ally . | . . . Total Orders . | . . . Ally Attacks . | . . . Total Damage . | . . . Kills . | . . . Allies Corrupted . | . . . Allies Melted . | . . . Intel | -11 -10 -9 ------- Run | Yrd Mat Mat Robot Analysis Total . | . . . Derelict Logs Recovered . | . . . Drone Launches . | . . . Drone Recoveries . | . . . Exploration | -11 -10 -9 ------------- Run | Yrd Mat Mat Turns Passed 609 | 62 230 317 Spaces Moved 399 | 60 169 170 Core 49 | 20 . 29 Treads . | . . . Legs 46 | . . 46 Wheels 153 | 40 113 . Hover . | . . . Flight 151 | . 56 95 Fastest Speed 34 | 50 80 34 Average Speed 76 | 70 92 64 Slowest Speed 150 | 80 117 150 Overloaded Moves . | . . . Propulsion Burnouts . | . . . Robots Hopped . | . . . Cave-ins Triggered . | . . . Exploration Rate (%) 18 | 9 31 16 Regions Visited 2 Branch Regions . Pre-discovered Areas . | . . . Known Exits Taken . | . . . Unknown Exits Taken 2 | 1 1 . Scrap Searched . | . . . Spaces Dug . | . . . Terrain Destroyed . | . . . Melee . | . . . Projectile . | . . . AOE . | . . . Terrain Rammed . | . . . Walls Destroyed . | . . . Machines Disabled . | . . . Actions | -11 -10 -9 --------- Run | Yrd Mat Mat Total 573 | 73 217 283 Wait 4 | 1 2 1 Move 397 | 59 168 170 Hop . | . . . Pick Up 32 | 5 13 14 Fast Attach . | . . . Attach 31 | 5 8 18 Detach 2 | . . 2 Swap . | . . . Drop 10 | . 6 4 Fire 97 | 3 20 74 Melee . | . . . Ram . | . . . Kick . | . . . Crush . | . . . Escape Stasis . | . . . Rewire . | . . . Trap . | . . . Miscellaneous . | . . . Route ------- -11/Scrapyard -10/Materials -9/Materials History --------- Turn | Location | Event 2 | -11/Scrapyard | Met Revision 17 44 | -11/Scrapyard | Discovered new exit (range 8) 63 | -11/Scrapyard | Entered Materials 203 | -10/Materials | Met 8R-AWN 232 | -10/Materials | Discovered new exit (range 15) 293 | -10/Materials | Entered another Materials area 293 | -9/Materials | Evolved 2 slots: Power x1, Propulsion x1 402 | -9/Materials | Lost 8 parts (2p5n1w) 408 | -9/Materials | Destroyed 9 combat bots 437 | -9/Materials | Core integrity fell below 50% 540 | -9/Materials | Core integrity fell below 20% 545 | -9/Materials | Lost 3 parts (1p1u1w) 610 | -9/Materials | Destroyed by Y-45 Defender with Beam Rifle Last Messages --------------- K-01 Serf collects debris. Lgt. Ion Engine destroyed. Imp. Heat Sink destroyed. K-01 Serf collects debris. R-06 Scavenger collects Heat Sink. Acquired Aluminum Leg. Acquired 24 matter. Acquired Aluminum Leg. Lgt. Assault Rifle destroyed. G-34 Mercenary destroyed. Acquired 32 matter. R-06 Scavenger collects Heat Sink. Lgt. Assault Rifle destroyed. Acquired 17 matter. Aluminum Leg destroyed. Ion Engine destroyed. Critical hit (Burn: +37). Acquired Hvy. EM Pulse Gun. Y-45 Defender misfires. [Achievement: First Step to Greatness] Map ----- +----------------------------------------------------+ | ?####+## """ #?# "" ## #???????? | | ????# *+ """ #?# ""S ## #???????? | | ????# # #?# "" ##% #???????? | | ????# ####+##### ## #???????? | | ????# + ##% ##??????? | | ????# ##### ######+## ### #??? | | ????# #???# #### % #??? | | ????# #???# #??? | | ????#+#####+########+#### ### #??? | | ????# # ######???#??? | | ????# # #???????????? | | ????# # """ """ #???????????? | | ????# # """ """ #???????????? | | ????# # """ """ #???????????? | | ????# # #???????????? | | ????# # #???????????? | | ????# # #??????? ###? | | ????########+########+######### | | ????????# ^ | | ????????# | | ????????# #? | | ????????############!! #? | | ?????????###########!! """ #? | | ????????## #! """ #? | | ????????#Y[ # """ ?? | | ????????## @ # #? | | ?????????# ; Y /? | | ?????????# " "" #t ""T"" #? | | ?????????# "R"" # """""???? | | ?????????# """" # ########?????? | | ?????????# # #????????????? | | ?????????########### #????????????? | | ???????????????????# #????????????? | | ??????????????????? #????????????? | | ???????????????????# #????????????? | | ???????????????????##+##????????????? | | ????????????????????????????????????? | | ????????????????????????????????????? | | ????????????????????????????????????? | | ????????????????????????????????????? | | ????????????????????????????????????? | | ????????????????????????????????????? | | ????????????????????????????????????? | | ????????????????????????????????????? | | ????????????????????????????????????? | | ????????????????????????????????????? | | ????????????????????????????????????? | | ????????????????????????????????????? | | ????????????????????????????????????? | | ????????????????????????????????????? | +----------------------------------------------------+ Best States ------------- Heat Dissipation 42 Energy Generation 19 Energy Capacity 250 Matter Stores 300 Matter Capacity 300 Sight Range 16 Terrain Scan Density 10 ECM Strength 1 Evasion (%) 63 Targeting Accuracy 5 Item Schematics ----------------- ECM Suite | -9/Materials | Scanalyzed Robot Schematics ------------------ None Fabricated ------------ Nothing Alien Tech Used ----------------- None Achievements -------------- Crack Shot First Step to Greatness One Hack Too Far Challenges ------------ None Game ------ Seed CompactIntegratedProcessor Manual? 0 Play Time 00:14:44 Cumulative 1.0 hours Start 2024.04.19 @ 18:41:30 End 2024.04.19 @ 18:53:25 Sessions 1 Manual Loads 0 Difficulty Rogue Special Mode None Game No. 2 Rogue 2 Adventurer 0 Explorer 0 Win Type - Total 0 Types 0/0/0/0/0/0/0/0/0 Lore% 0 Gallery% 3 Achievement% 4 Wizard Run 0 Options --------- Layout 1 ASCII 0 Keyboard 0 Movement Numpad Keybinds 0 Fullscreen 1 Font 24/Terminus Map View 50x35 Zoom Use 0% Tactical HUD 0 Map Filters NONE Filters NONE Steam 1 RUN: d4e0cbe2-63e3-4691-9550-1870b0d9d5c1